fUSD/lending_fUSD_20240708
["ID","MTS","AMOUNT","RATE_DAILY","PERIOD"]
[331486191,1720438245988,-500.0,0.00052054,120]
[331486192,1720438246042,-500.0,0.00052054,120]
[331486193,1720438246092,-500.0,0.00052054,120]
[331486194,1720438246144,-3776.54,0.00052054,120]
[331486196,1720438246196,-1795.75,0.00052054,120]
[331486198,1720438246250,-500.0,0.00052054,120]
[331486199,1720438246301,-754.18,0.00052054,120]
[331486200,1720438246356,-196.53664611,0.00052054,120]
[331486201,1720438246411,-500.0,0.00052054,120]
[331486202,1720438246461,-500.0,0.00052054,120]
[331486203,1720438246517,-500.0,0.00052054,40]
[331486208,1720438246573,-500.0,0.00052054,120]
[331486211,1720438246628,-500.0,0.00052054,120]
[331486212,1720438246681,-1684.15,0.00052054,120]
[331486213,1720438246734,-500.0,0.00052054,120]
[331486214,1720438246787,-639.54,0.00052054,120]
[331486215,1720438246842,-500.0,0.00052054,120]
[331486216,1720438247084,-500.0,0.00052054,120]
[331486217,1720438247137,-500.0,0.00052054,120]
[331486218,1720438247196,-1793.9,0.00052054,120]
[331486219,1720438247254,-500.0,0.00052054,120]
[331486220,1720438247310,-626.58,0.00052054,120]
[331486221,1720438247368,-1733.81,0.00052054,120]
[331486222,1720438247424,-1653.08,0.00052054,120]
[331486223,1720438247476,-738.49,0.00052054,120]
[331486224,1720438247529,-500.0,0.00052054,120]
[331486225,1720438247585,-500.0,0.00052054,120]
[331486226,1720438247638,-500.0,0.00052054,120]
[331486227,1720438247690,-500.0,0.00052054,120]
[331486228,1720438247742,-515.53,0.00052054,120]
[331486229,1720438247793,-500.0,0.00052054,120]
[331486230,1720438247846,-802.08,0.00052054,120]
[331486231,1720438247896,-1557.0,0.00052054,120]
[331486232,1720438247948,-684.17,0.00052054,120]
[331486233,1720438247999,-3130.17,0.00052054,120]
[331486234,1720438248048,-500.0,0.00052054,120]
[331486235,1720438248099,-532.95,0.00052054,120]
[331486236,1720438248150,-500.0,0.00052054,120]
[331486237,1720438248201,-500.0,0.00052054,120]
[331486238,1720438248252,-502.08,0.00052054,120]
[331486239,1720438248302,-507.83824086,0.00052054,120]
[331486240,1720438248353,-500.0,0.00052054,120]
[331486241,1720438248403,-1335.76,0.00052054,120]
[331486242,1720438248454,-626.33,0.00052054,120]
[331486243,1720438248508,-795.89,0.00052054,120]
[331486244,1720438248559,-1183.41,0.00052054,120]
[331486245,1720438248611,-500.0,0.00052054,120]
[331486246,1720438248665,-500.0,0.00052054,120]
[331486247,1720438248719,-1278.56,0.00052054,120]
[331486248,1720438248774,-368.84787445,0.00052054,120]
[331486249,1720438248826,-500.0,0.00052054,120]
[331486250,1720438248876,-500.0,0.00052054,120]
[331486251,1720438248929,-500.0,0.00052054,120]
[331486252,1720438248983,-500.0,0.00052054,120]
[331486253,1720438249035,-500.0,0.00052054,120]
[331486254,1720438249087,-629.67,0.00052054,120]
[331486255,1720438249138,-350.98,0.00052054,120]
[331486256,1720438249188,-323.68968396,0.00052054,120]
[331486257,1720438249238,-3526.41,0.00052054,120]
[331486258,1720438249289,-1599.68,0.00052054,120]
[331486259,1720438249342,-697.42,0.00052054,120]
[331486260,1720438249391,-500.0,0.00052054,120]
[331486261,1720438249441,-587.27,0.00052054,120]
[331486262,1720438249490,-500.0,0.00052054,120]
[331486263,1720438249543,-2679.44,0.00052054,120]
[331486264,1720438249597,-1492.66,0.00052054,120]
[331486265,1720438249646,-527.7,0.00052054,120]
[331486266,1720438249696,-1613.26707388,0.00052054,120]
[331486267,1720438271056,492.24879878,0.00011199,2]
[331486268,1720438294123,200.0,0.00027,120]
[331486269,1720438315528,-666.47884154,0.00040115,30]
[331486270,1720438315579,-257.56335541,0.00040169,30]
[331486271,1720438315630,-155.26727901,0.00040214,30]
[331486272,1720438315682,-1941.21439951,0.00040224,30]
[331486273,1720438315732,-666.47884154,0.0004033,30]
[331486274,1720438315782,-227.81588159,0.00040389,30]
[331486275,1720438315836,-152.85083519,0.00040404,30]
[331486276,1720438315890,-400.17203166,0.00040414,30]
[331486277,1720438315947,-666.47884154,0.00040664,30]
[331486278,1720438316003,-400.17203166,0.00040746,30]
[331486279,1720438316063,-227.81588159,0.00040778,30]
[331486280,1720438316116,-227.81588159,0.00040779,30]
[331486281,1720438316170,-162.01068449,0.00040972,30]
[331486282,1720438316225,-155.26727901,0.00040987,30]
[331486283,1720438316279,-400.17203166,0.00041083,30]
[331486284,1720438316332,-600.0,0.00041096,120]
[331486285,1720438316386,-153.23456323,0.00041145,30]
[331486286,1720438316439,-257.56335541,0.00041174,30]
[331486287,1720438316494,-150.15697117,0.00041186,30]
[331486288,1720438316552,-162.01068449,0.00041187,30]
[331486289,1720438316608,-320.6365536,0.00041244,30]
[331486290,1720438316661,-155.26727901,0.0004128,30]
[331486291,1720438316710,-227.81588159,0.00041288,30]
[331486292,1720438316762,-155.26727901,0.00041329,30]
[331486293,1720438316814,-227.81588159,0.00041364,30]
[331486294,1720438316863,-1941.21439951,0.00041469,30]
[331486295,1720438316916,-177.09955364,0.00041469,30]
[331486296,1720438316967,-151.29436536,0.0004147,30]
[331486297,1720438317016,-320.6365536,0.00041514,30]
[331486298,1720438317066,-152.85083519,0.00041523,30]
[331486299,1720438317114,-227.81588159,0.00041612,30]
[331486300,1720438317162,-400.17203166,0.00041633,30]
[331486301,1720438317214,-171.80462485,0.00041649,30]
[331486302,1720438317262,-257.56335541,0.00041679,30]
[331486303,1720438317313,-162.01068449,0.00041691,30]
[331486304,1720438317367,-257.56335541,0.00041736,30]
[331486305,1720438317419,-155.26727901,0.00041749,30]
[331486306,1720438317473,-1358.50662563,0.00041781,30]
[331486307,1720438317522,-666.47884154,0.00041785,30]
[331486308,1720438317571,-155.75447925,0.00041805,30]
[331486309,1720438317624,-162.01068449,0.00041806,30]
[331486310,1720438317672,-257.56335541,0.00041876,30]
[331486311,1720438317724,-162.01068449,0.0004188,30]
[331486312,1720438317774,-173.85642853,0.00041899,30]
[331486313,1720438317822,-1358.50662563,0.00041907,30]
[331486314,1720438317872,-227.81588159,0.00041931,30]
[331486315,1720438317920,-162.01068449,0.00041972,30]
[331486316,1720438317971,-155.26727901,0.00042002,30]
[331486317,1720438318019,-166.6666667,0.00042023,30]
[331486318,1720438318069,-320.6365536,0.00042041,30]
[331486319,1720438318260,-152.85083519,0.00042048,30]
[331486320,1720438318313,-155.71206553,0.00042157,30]
[331486321,1720438318368,-1358.50662563,0.00042262,30]
[331486322,1720438318420,-166.70724823,0.00042291,30]
[331486323,1720438318469,-155.75447925,0.00042324,30]
[331486324,1720438318519,-866.74202253,0.00042361,30]
[331486325,1720438318568,-171.80462486,0.00042419,30]
[331486326,1720438318617,-866.74202253,0.0004242,30]
[331486327,1720438318666,-866.74202253,0.00042441,30]
[331486328,1720438318714,-155.51654116,0.00042462,30]
[331486329,1720438318762,-500.0,0.00042465,120]
[331486330,1720438318812,-500.0,0.00042465,120]
[331486331,1720438318861,-500.0,0.00042465,120]
[331486332,1720438318914,-500.0,0.00042465,120]
[331486333,1720438318970,-500.0,0.00042465,120]
[331486334,1720438319026,-500.0,0.00042465,120]
[331486335,1720438319077,-500.0,0.00042465,120]
[331486336,1720438319127,-500.0,0.00042465,120]
[331486337,1720438319177,-500.0,0.00042465,120]
[331486338,1720438319226,-500.0,0.00042465,120]
[331486339,1720438319276,-500.0,0.00042465,120]
[331486340,1720438319329,-500.0,0.00042465,120]
[331486341,1720438319380,-500.0,0.00042465,120]
[331486342,1720438319433,-500.0,0.00042465,120]
[331486343,1720438319486,-500.0,0.00042465,120]
[331486344,1720438319536,-500.0,0.00042465,120]
[331486345,1720438319589,-500.0,0.00042465,120]
[331486346,1720438319642,-500.0,0.00042465,120]
[331486347,1720438319692,-500.0,0.00042465,120]
[331486348,1720438319742,-500.0,0.00042465,120]
[331486349,1720438319792,-174.80956136,0.00042475,30]
[331486350,1720438319838,-161.77787719,0.00042483,30]
[331486351,1720438319892,-600.0,0.00042501,120]
[331486352,1720438319941,-257.56335541,0.00042806,30]
[331486353,1720438319990,-152.85083519,0.00042925,30]
[331486354,1720438320040,-1358.50662563,0.00042934,30]
[331486355,1720438320092,-162.01068449,0.0004296,30]
[331486356,1720438320143,-400.17203166,0.00042994,30]
[331486357,1720438320196,-227.81588159,0.00043128,30]
[331486358,1720438320248,-155.51654116,0.00043167,30]
[331486359,1720438320300,-866.74202253,0.00043185,30]
[331486360,1720438320352,-166.66666667,0.00043188,30]
[331486361,1720438320406,-227.81588159,0.00043193,30]
[331486362,1720438320458,-218.31296591,0.00043197,30]
[331486363,1720438320510,-666.47884154,0.0004326,30]
[331486364,1720438320562,-155.71206553,0.00043284,30]
[331486365,1720438320612,-152.85083519,0.00043416,30]
[331486366,1720438320662,-155.71206553,0.00043441,30]
[331486367,1720438320713,-240.24352775,0.00043472,30]
[331486368,1720438320762,-320.6365536,0.00043521,30]
[331486369,1720438320814,-866.74202253,0.00043532,30]
[331486370,1720438320866,-320.6365536,0.0004354,30]
[331486371,1720438320916,-666.47884154,0.00043603,30]
[331486372,1720438320967,-152.85083519,0.00043608,30]
[331486373,1720438321018,-666.47884154,0.00043624,30]
[331486374,1720438321067,-240.24352775,0.0004366,30]
[331486375,1720438321117,-666.47884154,0.00043669,30]
[331486376,1720438321168,-167.83737225,0.00043729,30]
[331486377,1720438321217,-1358.50662563,0.00043745,30]
[331486379,1720438321267,-866.74202253,0.00043749,30]
[331486381,1720438321319,-227.81588159,0.00043799,30]
[331486382,1720438321374,-218.31296591,0.00043819,30]
[331486384,1720438321425,-833.33,0.00043835,120]
[331486385,1720438321479,-166.70724823,0.0004388,30]
[331486386,1720438321528,-600.0,0.00043906,120]
[331486387,1720438321580,-240.24352775,0.00043909,30]
[331486388,1720438321631,-161.26799713,0.00043928,30]
[331486389,1720438321684,-227.81588159,0.00043992,30]
[331486390,1720438321740,-218.31296591,0.00044048,30]
[331486391,1720438321792,-666.47884154,0.00044105,30]
[331486392,1720438321844,-161.26799713,0.00044236,30]
[331486393,1720438321895,-174.80956136,0.00044345,30]
[331486394,1720438321944,-162.01068449,0.00044345,30]
[331486395,1720438321992,-666.47884154,0.00044386,30]
[331486396,1720438322044,-866.74202253,0.00044433,30]
[331486397,1720438322095,-152.85083519,0.00044497,30]
[331486398,1720438322144,-155.71206553,0.0004451,30]
[331486399,1720438322193,-833.33,0.0004452,120]
[331486400,1720438322241,-400.17203166,0.00044621,30]
[331486401,1720438322288,-1268.81765462,0.0004465,30]
[331486402,1720438322336,-151.14628752,0.00044711,30]
[331486403,1720438322383,-320.6365536,0.00044773,30]
[331486404,1720438322697,-227.81588159,0.00044859,30]
[331486405,1720438322749,-1941.21439951,0.00044873,30]
[331486406,1720438322800,-1268.81765462,0.00044874,30]
[331486407,1720438322851,-666.47884154,0.00044879,30]
[331486408,1720438322900,-172.61602853,0.00044942,30]
[331486409,1720438322948,-155.71206553,0.00044975,30]
[331486410,1720438323004,-1268.81765462,0.00045014,30]
[331486411,1720438323055,-1941.21439951,0.00045056,30]
[331486412,1720438323106,-218.31296591,0.00045056,30]
[331486413,1720438323157,-155.51654116,0.00045068,30]
[331486414,1720438323208,-1358.50662563,0.00045164,30]
[331486415,1720438323258,-833.33,0.00045205,120]
[331486416,1720438323304,-169.45247593,0.00045242,30]
[331486417,1720438323354,-155.51654116,0.00045245,30]
[331486418,1720438323402,-159.8267339,0.00045271,30]
[331486419,1720438323448,-1358.50662563,0.00045289,30]
[331486420,1720438323494,-600.0,0.00045311,120]
[331486421,1720438323540,-155.51654116,0.00045365,30]
[331486422,1720438323588,-866.74202253,0.00045387,30]
[331486423,1720438323636,-152.85083519,0.00045407,30]
[331486424,1720438323684,-400.17203166,0.00045423,30]
[331486425,1720438323734,-1941.21439951,0.00045445,30]
[331486426,1720438323782,-155.26727901,0.00045496,30]
[331486427,1720438323832,-227.81588159,0.00045499,30]
[331486428,1720438323882,-320.6365536,0.00045508,30]
[331486429,1720438323934,-257.56335541,0.00045556,30]
[331486430,1720438323988,-166.66666667,0.00045564,30]
[331486431,1720438324047,-666.47884154,0.00045565,30]
[331486432,1720438324099,-155.51654116,0.00045602,30]
[331486433,1720438324158,-151.29436537,0.00045615,30]
[331486434,1720438324212,-257.56335541,0.00045621,30]
[331486435,1720438324266,-320.6365536,0.00045634,30]
[331486436,1720438324323,-320.6365536,0.00045639,30]
[331486437,1720438324381,-666.47884154,0.00045643,30]
[331486438,1720438324435,-159.8267339,0.00045653,30]
[331486439,1720438324488,-320.6365536,0.00045722,30]
[331486440,1720438324544,-166.70724823,0.00045763,30]
[331486441,1720438324602,-227.81588159,0.00045816,30]
[331486442,1720438324656,-1941.21439951,0.00045868,30]
[331486443,1720438324712,-400.17203166,0.00045881,30]
[331486444,1720438324768,-833.33,0.0004589,120]
[331486445,1720438324823,-152.85083519,0.00045898,30]
[331486446,1720438324877,-227.81588159,0.00045924,30]
[331486447,1720438324931,-174.80956136,0.00045925,30]
[331486448,1720438324985,-184.39502396,0.00045934,30]
[331486449,1720438325037,-400.17203166,0.00046003,30]
[331486450,1720438325092,-257.56335541,0.00046034,30]
[331486451,1720438325147,-866.74202253,0.00046053,30]
[331486452,1720438325200,-666.47884154,0.00046056,30]
[331486453,1720438325252,-172.61602853,0.00046079,30]
[331486454,1720438325305,-320.6365536,0.00046243,30]
[331486455,1720438325364,-169.44681685,0.00046448,30]
[331486456,1720438325419,-155.75447925,0.00046539,30]
[331486457,1720438325477,-1941.21439951,0.00046568,30]
[331486458,1720438325534,-1941.21439951,0.00046574,30]
[331486459,1720438325588,-833.33,0.00046575,120]
[331486460,1720438325644,-320.6365536,0.00046578,30]
[331486461,1720438325698,-600.0,0.00046716,120]
[331486462,1720438325752,-152.85083519,0.00046735,30]
[331486463,1720438325805,-218.31296591,0.00046768,30]
[331486464,1720438325857,-400.17203166,0.00046853,30]
[331486465,1720438325910,-173.85642853,0.00046854,30]
[331486466,1720438325963,-1268.81765462,0.00046901,30]
[331486467,1720438326018,-866.74202253,0.00047037,30]
[331486468,1720438326070,-218.31296591,0.0004707,30]
[331486469,1720438326124,-162.01068449,0.00047073,30]
[331486470,1720438326179,-866.74202253,0.00047089,30]
[331486471,1720438326233,-218.31296591,0.00047094,30]
[331486472,1720438326286,-162.01068449,0.00047127,30]
[331486473,1720438326340,-257.56335541,0.00047147,30]
[331486474,1720438326392,-1268.81765462,0.00047195,30]
[331486475,1720438326516,-1268.81765462,0.00047225,30]
[331486476,1720438326566,-1268.81765462,0.00047258,30]
[331486477,1720438326617,-833.33,0.0004726,120]
[331486478,1720438326669,-227.81588159,0.00047269,30]
[331486479,1720438326721,-1941.21439951,0.00047294,30]
[331486480,1720438326773,-1358.50662563,0.00047422,30]
[331486481,1720438326823,-1358.50662563,0.0004752,30]
[331486482,1720438326873,-1268.81765462,0.00047556,30]
[331486483,1720438326925,-1941.21439951,0.00047574,30]
[331486484,1720438326976,-218.31296591,0.00047574,30]
[331486485,1720438327028,-1358.50662563,0.00047601,30]
[331486486,1720438327079,-866.74202253,0.00047619,30]
[331486487,1720438327128,-240.24352775,0.00047729,30]
[331486488,1720438327182,-666.47884154,0.00047732,30]
[331486489,1720438327231,-400.17203166,0.00047767,30]
[331486490,1720438327280,-152.85083519,0.00047807,30]
[331486491,1720438327332,-400.17203166,0.00047845,30]
[331486492,1720438327380,-155.26727901,0.00047944,30]
[331486493,1720438327428,-833.33,0.00047945,120]
[331486494,1720438327476,-151.14628752,0.00047969,30]
[331486495,1720438327526,-400.17203166,0.00048034,30]
[331486496,1720438327577,-169.45247593,0.0004809,30]
[331486497,1720438327627,-171.36869708,0.00048097,30]
[331486498,1720438327676,-155.26727901,0.00048162,30]
[331486499,1720438327727,-152.85083519,0.00048191,30]
[331486500,1720438327777,-1941.21439951,0.00048205,30]
[331486501,1720438327828,-400.17203166,0.00048256,30]
[331486502,1720438327879,-155.26727901,0.00048307,30]
[331486503,1720438327928,-257.56335541,0.00048373,30]
[331486504,1720438327979,-162.01068449,0.00048568,30]
[331486505,1720438328030,-866.74202253,0.00048596,30]
[331486506,1720438328078,-162.01068449,0.000486,30]
[331486507,1720438328130,-155.26727901,0.00048609,30]
[331486508,1720438328183,-833.33,0.0004863,120]
[331486509,1720438328233,-240.24352775,0.00048649,30]
[331486510,1720438328286,-155.71206553,0.00048701,30]
[331486511,1720438328339,-240.24352775,0.00048711,30]
[331486512,1720438328391,-400.17203166,0.00048725,30]
[331486513,1720438328446,-1268.81765462,0.00048739,30]
[331486514,1720438328500,-218.31296591,0.00048741,30]
[331486515,1720438328553,-218.31296591,0.00048745,30]
[331486516,1720438328606,-1358.50662563,0.00048755,30]
[331486517,1720438328658,-240.24352775,0.00048786,30]
[331486518,1720438328710,-400.17203166,0.00048819,30]
[331486519,1720438328760,-320.6365536,0.00048826,30]
[331486520,1720438328814,-1941.21439951,0.00048908,30]
[331486521,1720438328879,-666.47884154,0.00048942,30]
[331486522,1720438328938,-538.1478288,0.00049,90]
[331486523,1720438328994,-1268.81765462,0.00049081,30]
[331486524,1720438329051,-218.31296591,0.00049095,30]
[331486525,1720438329105,-666.47884154,0.00049157,30]
[331486526,1720438329158,-866.74202253,0.0004918,30]
[331486527,1720438329212,-155.71206553,0.00049285,30]
[331486528,1720438329266,-320.6365536,0.00049294,30]
[331486529,1720438329322,-227.81588159,0.00049305,30]
[331486530,1720438329395,-227.81588159,0.00049311,30]
[331486531,1720438329450,-500.0,0.00049315,120]
[331486532,1720438329504,-500.0,0.00049315,120]
[331486533,1720438329560,-500.0,0.00049315,120]
[331486534,1720438329612,-858.68,0.00049315,120]
[331486535,1720438329670,-500.0,0.00049315,120]
[331486536,1720438329725,-1349.79,0.00049315,120]
[331486537,1720438329779,-500.0,0.00049315,120]
[331486538,1720438329831,-500.0,0.00049315,120]
[331486539,1720438329880,-500.0,0.00049315,120]
[331486540,1720438329932,-502.55,0.00049315,120]
[331486541,1720438329986,-500.0,0.00049315,120]
[331486542,1720438330040,-500.0,0.00049315,120]
[331486543,1720438330094,-500.0,0.00049315,120]
[331486544,1720438330144,-355.29858862,0.00049315,120]
[331486545,1720438330195,-3020.56,0.00049315,120]
[331486546,1720438330246,-500.0,0.00049315,120]
[331486547,1720438330297,-288.69920904,0.00049315,120]
[331486548,1720438330346,-500.0,0.00049315,120]
[331486549,1720438330407,-500.0,0.00049315,120]
[331486550,1720438330457,-500.0,0.00049315,120]
[331486551,1720438330511,-307.06552016,0.00049315,30]
[331486552,1720438330563,-500.0,0.00049315,120]
[331486553,1720438330614,-500.0,0.00049315,120]
[331486554,1720438330666,-500.0,0.00049315,120]
[331486556,1720438330718,-493.58184155,0.00049315,120]
[331486557,1720438330770,-500.0,0.00049315,120]
[331486558,1720438330823,-1293.82,0.00049315,120]
[331486559,1720438330889,-1674.53,0.00049315,120]
[331486560,1720438330943,-1078.52,0.00049315,120]
[331486561,1720438330995,-466.21467429,0.00049315,120]
[331486562,1720438331044,-500.0,0.00049315,120]
[331486563,1720438331099,-500.0,0.00049315,120]
[331486564,1720438331152,-500.0,0.00049315,120]
[331486565,1720438331204,-834.62,0.00049315,120]
[331486566,1720438331258,-500.0,0.00049315,120]
[331486567,1720438331309,-500.0,0.00049315,120]
[331486568,1720438331360,-625.62,0.00049315,120]
[331486569,1720438331429,-500.0,0.00049315,120]
[331486570,1720438331480,-500.0,0.00049315,120]
[331486571,1720438331533,-833.33,0.00049315,120]
[331486572,1720438331581,-1390.62,0.00049315,120]
[331486573,1720438331631,-1406.2,0.00049315,120]
[331486574,1720438331681,-500.0,0.00049315,120]
[331486575,1720438331730,-238.08,0.00049315,120]
[331486576,1720438331779,-500.0,0.00049315,120]
[331486577,1720438331828,-500.0,0.00049315,120]
[331486578,1720438331882,-500.0,0.00049315,120]
[331486579,1720438331937,-500.0,0.00049315,120]
[331486580,1720438331986,-500.0,0.00049315,120]
[331486581,1720438332145,-500.0,0.00049315,120]
[331486582,1720438332196,-500.0,0.00049315,120]
[331486583,1720438332244,-500.0,0.00049315,120]
[331486584,1720438332295,-500.0,0.00049315,120]
[331486585,1720438332342,-500.0,0.00049315,120]
[331486586,1720438332391,-500.0,0.00049315,120]
[331486587,1720438332444,-501.5533233,0.00049315,120]
[331486588,1720438332494,-500.0,0.00049315,120]
[331486589,1720438332542,-500.0,0.00049315,120]
[331486590,1720438332590,-500.0,0.00049315,120]
[331486591,1720438332638,-500.0,0.00049315,120]
[331486592,1720438332685,-500.0,0.00049315,120]
[331486593,1720438332740,-487.89005814,0.00049315,120]
[331486594,1720438332793,-500.0,0.00049315,120]
[331486595,1720438332849,-500.0,0.00049315,120]
[331486596,1720438332903,-669.87,0.00049315,120]
[331486597,1720438332959,-500.0,0.00049315,120]
[331486598,1720438333013,-500.0,0.00049315,120]
[331486599,1720438333067,-500.67426838,0.00049315,120]
[331486600,1720438333124,-500.0,0.00049315,120]
[331486601,1720438333179,-500.0,0.00049315,120]
[331486602,1720438333232,-500.0,0.00049315,120]
[331486603,1720438333286,-500.0,0.00049315,120]
[331486604,1720438333339,-500.65194307,0.00049315,120]
[331486605,1720438333390,-500.0,0.00049315,120]
[331486606,1720438333444,-500.0,0.00049315,120]
[331486607,1720438333497,-470.0,0.00049315,120]
[331486608,1720438333555,-500.0,0.00049315,120]
[331486609,1720438333612,-579.53467137,0.00049315,120]
[331486610,1720438333676,-500.0,0.00049315,120]
[331486611,1720438333735,-500.0,0.00049315,120]
[331486612,1720438333793,-500.0,0.00049315,120]
[331486613,1720438333849,-500.0,0.00049315,120]
[331486614,1720438333905,-500.0,0.00049315,120]
[331486615,1720438333958,-302.76809953,0.00049315,120]
[331486616,1720438334013,-500.0,0.00049315,120]
[331486617,1720438334064,-500.0,0.00049315,120]
[331486618,1720438334115,-617.8,0.00049315,120]
[331486619,1720438334168,-500.0,0.00049315,120]
[331486620,1720438334220,-728.82,0.00049315,120]
[331486621,1720438334276,-500.0,0.00049315,120]
[331486622,1720438334330,-633.31,0.00049315,120]
[331486623,1720438334381,-2399.28,0.00049315,120]
[331486624,1720438334431,-500.54004276,0.00049315,120]
[331486625,1720438334484,-500.0,0.00049315,120]
[331486626,1720438334537,-1434.06,0.00049315,120]
[331486627,1720438334590,-500.0,0.00049315,120]
[331486628,1720438334644,-510.34,0.00049315,120]
[331486629,1720438334695,-500.0,0.00049315,120]
[331486630,1720438334747,-500.0,0.00049315,120]
[331486631,1720438334799,-500.0,0.00049315,120]
[331486632,1720438334850,-500.0,0.00049315,120]
[331486633,1720438334901,-2007.19,0.00049315,120]
[331486634,1720438334952,-1253.66,0.00049315,120]
[331486635,1720438335001,-277.79514343,0.00049315,120]
[331486636,1720438335051,-500.0,0.00049315,120]
[331486637,1720438335102,-500.0,0.00049315,120]
[331486638,1720438335153,-1628.65,0.00049315,120]
[331486639,1720438335204,-500.0,0.00049315,120]
[331486640,1720438335254,-1435.39,0.00049315,120]
[331486641,1720438335304,-2683.83,0.00049315,120]
[331486642,1720438335355,-500.0,0.00049315,120]
[331486643,1720438335408,-500.0,0.00049315,120]
[331486644,1720438335458,-1226.3,0.00049315,120]
[331486645,1720438335511,-418.47589281,0.00049315,120]
[331486646,1720438335564,-856.13,0.00049315,120]
[331486647,1720438335616,-628.12446045,0.00049315,120]
[331486648,1720438335674,-500.0,0.00049315,120]
[331486649,1720438335724,-1397.31,0.00049315,120]
[331486650,1720438335776,-500.0,0.00049315,120]
[331486651,1720438335830,-500.0,0.00049315,120]
[331486652,1720438335880,-500.0,0.00049315,120]
[331486653,1720438335930,-602.51,0.00049315,120]
[331486654,1720438335980,-667.55,0.00049315,120]
[331486655,1720438336030,-500.0,0.00049315,120]
[331486656,1720438336081,-1620.69,0.00049315,120]
[331486657,1720438336131,-812.96,0.00049315,120]
[331486658,1720438336180,-2144.73,0.00049315,120]
[331486659,1720438336232,-500.0,0.00049315,120]
[331486660,1720438336281,-500.0,0.00049315,120]
[331486661,1720438336331,-500.0,0.00049315,120]
[331486662,1720438336382,-500.0,0.00049315,120]
[331486663,1720438336434,-500.0,0.00049315,120]
[331486664,1720438336486,-233.32346899,0.00049315,120]
[331486665,1720438336536,-500.0,0.00049315,120]
[331486666,1720438336588,-500.0,0.00049315,120]
[331486667,1720438336638,-624.06,0.00049315,120]
[331486668,1720438336687,-500.0,0.00049315,120]
[331486669,1720438336738,-3560.63,0.00049315,120]
[331486670,1720438337049,-500.0,0.00049315,120]
[331486671,1720438337108,-500.0,0.00049315,120]
[331486672,1720438337168,-1545.37,0.00049315,120]
[331486673,1720438337228,-500.0,0.00049315,120]
[331486674,1720438337283,-500.0,0.00049315,120]
[331486675,1720438337340,-500.0,0.00049315,120]
[331486676,1720438337395,-500.0,0.00049315,120]
[331486677,1720438337450,-500.0,0.00049315,120]
[331486678,1720438337504,-500.0,0.00049315,120]
[331486679,1720438337558,-505.85,0.00049315,120]
[331486680,1720438337612,-500.0,0.00049315,120]
[331486681,1720438337668,-500.0,0.00049315,120]
[331486682,1720438337725,-500.0,0.00049315,120]
[331486683,1720438337783,-801.42,0.00049315,120]
[331486684,1720438337839,-500.0,0.00049315,120]
[331486685,1720438337891,-500.0,0.00049315,120]
[331486686,1720438337947,-500.0,0.00049315,120]
[331486687,1720438338001,-500.0,0.00049315,120]
[331486688,1720438338051,-500.0,0.00049315,120]
[331486689,1720438338101,-500.0,0.00049315,120]
[331486690,1720438338149,-500.0,0.00049315,120]
[331486691,1720438338199,-3858.43,0.00049315,120]
[331486692,1720438338250,-500.0,0.00049315,120]
[331486693,1720438338299,-500.0,0.00049315,120]
[331486694,1720438338349,-2000.0,0.00049315,30]
[331486695,1720438338402,-526.64,0.00049315,120]
[331486696,1720438338456,-500.0,0.00049315,120]
[331486697,1720438338511,-500.0,0.00049315,120]
[331486698,1720438338566,-500.0,0.00049315,120]
[331486699,1720438338618,-500.0,0.00049315,120]
[331486700,1720438338670,-500.0,0.00049315,120]
[331486701,1720438338720,-500.0,0.00049315,120]
[331486702,1720438338771,-500.0,0.00049315,120]